Cogmind - Beta 12 X1 @@@ ROGUE MODE // 2022.07.31 @ 07:46:56 Player: Exp. Geonium Core Result: Self-destructed Performance ------------- Evolutions (3) 1500 Regions Visited (9) 1800 Robots Destroyed (64) 320 Value Destroyed (2064) 2064 Prototype IDs (1) 20 Alien Tech Used (0) 0 Bonus (1166) 1166 TOTAL SCORE: 6870 Bonus ------- High Alert Combat Kills 183 Follower Combat Kills 483 Entered Garrisons 200 Aligned with FarCom 300 Cogmind --------- Core Integrity 309/700 Matter 296/300 Energy 100/100 System Corruption 0% Temperature Cool (0) Movement Treading (160) Location -7/Garrison Parts ------- > --- POWER (1) -------- (None) > --- PROPULSION (4) --- Light Treads Advanced VSS Leg Advanced VSS Leg > --- UTILITY (6) ------ Terrain Scan Processor Target Analyzer Authchip [R/Combat] Authchip [R/Combat] > --- WEAPON (2) ------- Coil Gun > --- INVENTORY (5) ---- Authchip [R/Combat] Relay Coupler [NC] (28) Relay Coupler [Duelist] (25) Relay Coupler [Sentry] (26) Katana Peak State ------------ > --- POWER ------------ Light Nuclear Core > --- PROPULSION ------- Flying Fortress v7 > --- UTILITY ---------- Terrain Scan Processor Target Analyzer Authchip [R/Combat] Authchip [R/Combat] > --- WEAPON ----------- Autogun Katana > --- INVENTORY -------- Authchip [R/Combat] Authchip [R/Combat] Relay Coupler [NC] Relay Coupler [Duelist] Relay Coupler [Sentry] [Rating: 54] Favorites ----------- Power Ion Engine Engine Ion Engine Power Core Light Nuclear Core Propulsion Armored Treads Treads Armored Treads Leg Advanced VSS Leg Wheel Wheel Flight Unit Flying Fortress v7 Utility Small Storage Unit Device Heat Sink Storage Small Storage Unit Processor Target Analyzer Hackware Authchip [R/Combat] Protection Light Armor Plating Weapon Light Assault Rifle Energy Gun Medium Laser Ballistic Gun Light Assault Rifle Launcher Grenade Launcher Slashing Weapon Katana Build | -11 -10 -10 -9 -9 -9 -8 -8 -7 -7 ------- Run | Scr Mat Min Mat Min Exi Min Mat Fac Gar Slots Evolved 6 | . . . 2 . . . 2 2 . Power . | . . . . . . . . . . Propulsion 2 | . . . . . . . 2 . . Utility 4 | . . . 2 . . . . 2 . Weapon . | . . . . . . . . . . Parts Attached 55 | 2 . 2 7 1 . . 26 1 16 Power 3 | . . . . . . . 2 . 1 Engine 2 | . . . . . . . 2 . . Core 1 | . . . . . . . . . 1 Reactor . | . . . . . . . . . . Propulsion 21 | 2 . . 4 . . . 10 . 5 Treads 14 | 2 . . 4 . . . 6 . 2 Leg 2 | . . . . . . . . . 2 Wheel 2 | . . . . . . . 2 . . Hover . | . . . . . . . . . . Flight 3 | . . . . . . . 2 . 1 Utility 14 | . . . 3 . . . 8 1 2 Device 1 | . . . . . . . 1 . . Storage 1 | . . . . . . . 1 . . Processor 2 | . . . . . . . 1 1 . Hackware 2 | . . . . . . . . . 2 Protection 8 | . . . 3 . . . 5 . . Artifact . | . . . . . . . . . . Weapon 17 | . . 2 . 1 . . 6 . 8 Energy Gun 2 | . . 1 . . . . 1 . . Energy Cannon . | . . . . . . . . . . Ballistic Gun 11 | . . 1 . 1 . . 4 . 5 Ballistic Cannon . | . . . . . . . . . . Launcher 1 | . . . . . . . 1 . . Special Weapon . | . . . . . . . . . . Impact Weapon . | . . . . . . . . . . Slashing Weapon 3 | . . . . . . . . . 3 Piercing Weapon . | . . . . . . . . . . Special Melee Weapon . | . . . . . . . . . . Unidentified Prototypes 1 | . . . . . . . 1 . . Parts Lost 23 | . . 1 2 3 . . 11 . 6 Power 3 | . . . . 1 . . 1 . 1 Propulsion 10 | . . . 2 . . . 5 . 3 Utility 3 | . . . . . . . 3 . . Weapon 7 | . . 1 . 2 . . 2 . 2 Highest Loss Streak 4 | . . 1 1 2 . . 4 . 3 To Critical Strikes . | . . . . . . . . . . Average Slot Usage (%) 77 | . 85 84 72 89 66 66 86 32 63 Engine 6 | . 14 14 11 7 . . 6 . . Treads 23 | . 28 28 21 22 22 22 30 15 8 Leg 1 | . . . . . . . . . 8 Wheel 1 | . . . . . . . 3 . . Device 1 | . . . . . . . 4 . . Storage 8 | . 14 14 11 11 11 11 7 . . Processor 2 | . . . . . . . . 9 15 Hackware 1 | . . . . . . . . . 12 Protection 12 | . . . 6 29 22 22 17 . . Energy Gun 6 | . 28 25 11 7 . . 1 . . Ballistic Gun 10 | . . 1 11 11 11 11 15 . 8 Naked Turns . | . . . . . . . . . . Heaviest Build 47 | 14 14 14 37 37 19 19 47 3 13 Greatest Support 83 | 40 40 40 40 40 40 40 83 3 50 Greatest Overweight (x) 2 | . . . . . . . 2 . . Average Overweight (x) . | . . . . . . . . . . Largest Inventory Capacity 15 | 8 8 8 8 8 8 8 15 5 5 Average Capacity 7 | 8 8 8 8 8 8 8 8 5 5 Most Carried 8 | 6 4 5 8 8 8 8 8 5 5 Average Carried 6 | 5 4 4 4 8 7 8 6 5 4 Final Capacity 8 | 8 8 8 8 8 8 8 5 5 5 Final Carried 8 | 4 4 4 8 8 8 8 5 5 5 Class Distribution -------------------- 64% | Mutant 35% | Scavenger-Mutant Dominant Class ---------------- Mutant | -10/Materials Mutant | -10/Mines Mutant | -9/Materials Mutant | -9/Mines Mutant | -9/Exiles Mutant | -8/Mines Scavenger-Mutant | -8/Materials Mutant | -7/Factory Scavenger-Mutant | -7/Garrison Resources | -11 -10 -10 -9 -9 -9 -8 -8 -7 -7 ----------- Run | Scr Mat Min Mat Min Exi Min Mat Fac Gar Matter Collected 1430 | 190 . 50 75 119 . . 599 . 397 Remotely . | . . . . . . . . . . Salvage Created 2361 | . . 149 267 212 . . 1257 . 476 Parts 143 | . . 4 20 19 . . 83 . 17 Haulers Intercepted 4 | . . . . . . . 4 . . Recyclers Shooed 2 | . . . . . . . 2 . . Parts Field Recycled . | . . . . . . . . . . Retrieved Matter . | . . . . . . . . . . Parts Self-Destructed . | . . . . . . . . . . Prevented . | . . . . . . . . . . Kills | -11 -10 -10 -9 -9 -9 -8 -8 -7 -7 ------- Run | Scr Mat Min Mat Min Exi Min Mat Fac Gar Combat Hostiles Destroyed 53 | . . 3 7 10 . . 21 . 12 Melee 7 | . . . . 2 . . 2 . 3 Guns 44 | . . 2 7 8 . . 18 . 9 AOE 1 | . . . . . . . 1 . . Classes Destroyed 9 | . . 1 4 . . . 4 . . Worker 4 | . . . . . . . 4 . . Tunneler 1 | . . . . . . . 1 . . Hauler 4 | . . . . . . . 4 . . Recycler 1 | . . . . . . . 1 . . Watcher 1 | . . . 1 . . . . . . Swarmer 19 | . . . 3 7 . . 4 . 5 Grunt 23 | . . 3 1 3 . . 10 . 6 Brawler 2 | . . . 1 . . . 1 . . Sentry 9 | . . . 2 . . . 6 . 1 Best Kill Streak 5 | . . 2 4 4 . . 5 . 2 Combat Bots Only 5 | . . 2 4 4 . . 5 . 2 Max Kills in Single Turn 1 | . . 1 1 1 . . 1 . 1 Gunslinging . | . . . . . . . . . . Exploded 1 | . . . . . . . 1 . . Melee 1 | . . . . 1 . . 1 . 1 Uniques/NPCs Destroyed . | . . . . . . . . . . Combat | -11 -10 -10 -9 -9 -9 -8 -8 -7 -7 -------- Run | Scr Mat Min Mat Min Exi Min Mat Fac Gar Damage Taken 4414 | . 59 310 366 360 . . 2072 18 1229 Core 832 | . 7 45 112 43 . . 234 18 373 Absorbed by Shields 50 | . . . . . . . . . 50 Core Remaining (%) 74 | 100 . 79 . . . 61 57 . . Volleys Fired 201 | . . 22 26 20 . . 102 . 31 Largest 2 | . . 2 2 2 . . 2 . 2 Hottest 90 | . . 90 70 70 . . 60 . 53 Shots Fired 371 | . . 30 52 33 . . 202 . 54 Gun 370 | . . 30 52 33 . . 201 . 54 Cannon . | . . . . . . . . . . Launcher 1 | . . . . . . . 1 . . Special . | . . . . . . . . . . Kinetic 278 | . . . 26 20 . . 178 . 54 Thermal 61 | . . 22 26 13 . . . . . Explosive 1 | . . . . . . . 1 . . Electromagnetic 31 | . . 8 . . . . 23 . . Robot Hit Streak 26 | . . 18 8 6 . . 26 . 12 Robot Miss Streak 4 | . . 3 4 2 . . 4 . 4 Penetration Max . | . . . . . . . . . . Secondary Targets 6 | . . . 1 2 . . . . 3 Max Gunslinging Chain 1 | . . . 1 1 . . . . 1 Shots Hit Robots 264 | . . 23 25 21 . . 150 . 45 Core Hits 113 | . . 7 13 10 . . 63 . 20 Critical Kills 2 | . . . . . . . 1 . 1 Critical Parts Destroyed . | . . . . . . . . . . Critical Strikes 6 | . . 2 1 . . . 1 . 2 Burn 3 | . . 2 1 . . . . . . Destroy 2 | . . . . . . . 1 . 1 Sever 1 | . . . . . . . . . 1 Melee Attacks 23 | . . . . . . . . . 23 Impact . | . . . . . . . . . . Slashing 23 | . . . . . . . . . 23 Piercing . | . . . . . . . . . . Sneak Attacks 1 | . . . . . . . . . 1 Combat Hostiles 1 | . . . . . . . . . 1 Follow-up Attacks . | . . . . . . . . . . Damage Inflicted 3968 | . . 320 337 258 . . 1957 . 1096 Guns 3392 | . . 308 335 255 . . 1836 . 658 Cannons . | . . . . . . . . . . Explosions 37 | . . . . . . . 37 . . Melee 438 | . . . . . . . . . 438 Ramming 101 | . . 12 2 3 . . 84 . . Kinetic 2608 | . . . 175 143 . . 1632 . 658 Thermal 549 | . . 240 160 112 . . 37 . . Explosive . | . . . . . . . . . . Electromagnetic 272 | . . 68 . . . . 204 . . Impact . | . . . . . . . . . . Slashing 438 | . . . . . . . . . 438 Piercing . | . . . . . . . . . . Highest Corruption 4 | . . . . . . . 4 . . Average Corruption 3 | . . . . . . . 3 . . Corruption Purged . | . . . . . . . . . . Corruption Blocked . | . . . . . . . . . . Effects 30 | . . . . . . . 30 . . Message Errors 9 | . . . . . . . 9 . . Matter Fused 8 | . . . . . . . 8 . . Heat Flow Errors 3 | . . . . . . . 3 . . Energy Discharges 3 | . . . . . . . 3 . . Data Loss (minor) 4 | . . . . . . . 4 . . Data Loss (major) 2 | . . . . . . . 2 . . Weapon Failures 1 | . . . . . . . 1 . . Overload Shots . | . . . . . . . . . . Overflow Damage 5 | . . . . . . . . . 5 Projectiles . | . . . . . . . . . . Explosions . | . . . . . . . . . . Melee 5 | . . . . . . . . . 5 Knockbacks 1 | . . . . . . . 1 . . Impact 1 | . . . . . . . 1 . . Kinetic . | . . . . . . . . . . Secondary . | . . . . . . . . . . Self-Inflicted Damage 89 | . . . . . . . 89 . . Shots 2 | . . . . . . . 2 . . Rammed 18 | . . 2 1 3 . . 12 . . Targets Rammed 24 | . . 2 1 5 . . 16 . . Kicked . | . . . . . . . . . . Crushed 6 | . . . . 2 . . 4 . . Highest Temperature 351 | . . 306 36 351 . . 204 . 17 Average Temperature 93 | . . 144 17 164 . . 57 . 4 Received Heat Transfer 1706 | . . 180 141 162 . . 765 27 431 Effects 3 | . . . . 3 . . . . . Interference 3 | . . . . 3 . . . . . Siege Activations . | . . . . . . . . . . Robots Corrupted . | . . . . . . . . . . Combat Hostiles . | . . . . . . . . . . Parts Fried . | . . . . . . . . . . Impact Corruptions . | . . . . . . . . . . Robots Melted 1 | . . 1 . . . . . . . Combat Hostiles 1 | . . 1 . . . . . . . Parts Melted 5 | . . 3 1 . . . . . 1 Heat Transferred 1739 | . . 851 555 333 . . . . . Parts Sabotaged . | . . . . . . . . . . Parts Stolen . | . . . . . . . . . . Parts Stripped . | . . . . . . . . . . Power Chain Reactions 1 | . . . . . . . 1 . . Missiles Intercepted . | . . . . . . . . . . Alert | -11 -10 -10 -9 -9 -9 -8 -8 -7 -7 ------- Run | Scr Mat Min Mat Min Exi Min Mat Fac Gar Peak Influence 1066 | . 15 50 242 309 . . 476 311 1066 Initial 217 | . . 5 19 94 . . . 191 217 Average 250 | . . 34 141 199 . . 218 252 720 Maximum Alert Level 3 | . . . 1 1 . . 2 1 3 Low Security (%) 49 | 100 100 100 56 72 . 100 38 17 . Level 1 35 | . . . 43 27 . . 59 82 15 Level 2 4 | . . . . . . . 2 . 24 Level 3 9 | . . . . . . . . . 60 Level 4 . | . . . . . . . . . . Level 5 . | . . . . . . . . . . High Security . | . . . . . . . . . . Max Security . | . . . . . . . . . . Squads Dispatched 8 | . . . . . . . 5 3 . Investigation 3 | . . . . . . . 2 1 . Extermination . | . . . . . . . . . . Reinforcement 5 | . . . . . . . 3 2 . Assault . | . . . . . . . . . . Garrison . | . . . . . . . . . . Intercept . | . . . . . . . . . . Searches Triggered . | . . . . . . . . . . Construction Impeded . | . . . . . . . . . . Haulers Reinforced . | . . . . . . . . . . Active Scanning Responses . | . . . . . . . . . . Cargo Convoy Interrupts . | . . . . . . . . . . Stealth | -11 -10 -10 -9 -9 -9 -8 -8 -7 -7 --------- Run | Scr Mat Min Mat Min Exi Min Mat Fac Gar Distress Signals 8 | . 1 . 2 . . . 5 . . Communications Jammed . | . . . . . . . . . . Distress Signals . | . . . . . . . . . . Times Spotted 132 | . 2 4 15 10 . . 64 8 29 Peak Tracking Total 9 | . 4 2 4 4 . . 9 5 7 Tactical Retreats 15 | . 1 . 1 . . . 8 1 4 Traps | -11 -10 -10 -9 -9 -9 -8 -8 -7 -7 ------- Run | Scr Mat Min Mat Min Exi Min Mat Fac Gar Traps Triggered 6 | . . . . . . . 3 1 2 Indirectly . | . . . . . . . . . . Trap Hack Attempts . | . . . . . . . . . . Triggered . | . . . . . . . . . . Disarmed . | . . . . . . . . . . Reprogrammed . | . . . . . . . . . . Reused . | . . . . . . . . . . Traps Extracted . | . . . . . . . . . . Installed . | . . . . . . . . . . Triggered . | . . . . . . . . . . Exploded 1 | . . . . . 1 . . . . Machines | -11 -10 -10 -9 -9 -9 -8 -8 -7 -7 ---------- Run | Scr Mat Min Mat Min Exi Min Mat Fac Gar Machines Disabled 4 | . . 1 . 1 . . . . 2 Max in Single Turn 1 | . . 1 . 1 . . . . 1 Garrison Relay 1 | . . . . . . . . . 1 Machines Sabotaged . | . . . . . . . . . . Garrisons Compromised . | . . . . . . . . . . Overloaded Fab Kills . | . . . . . . . . . . Hacking | -11 -10 -10 -9 -9 -9 -8 -8 -7 -7 --------- Run | Scr Mat Min Mat Min Exi Min Mat Fac Gar Machines Accessed 15 | . . . 2 . 1 . 7 1 4 Terminals 13 | . . . 2 . . . 7 . 4 Fabricators . | . . . . . . . . . . Repair Stations . | . . . . . . . . . . Recycling Units . | . . . . . . . . . . Scanalyzers . | . . . . . . . . . . Garrison Access 1 | . . . . . . . . 1 . Total Hacks 46 | . . . 7 . 1 . 27 2 9 Successful 25 | . . . 5 . 1 . 15 1 3 Failed 21 | . . . 2 . . . 12 1 6 Catastrophic 3 | . . . 1 . . . 1 . 1 Database Lockouts . | . . . . . . . . . . Manual 20 | . . . 4 . 1 . 14 . 1 Terminals 43 | . . . 7 . . . 27 . 9 Fabricators . | . . . . . . . . . . Repair Stations . | . . . . . . . . . . Recycling Units . | . . . . . . . . . . Scanalyzers . | . . . . . . . . . . Garrison Access 2 | . . . . . . . . 2 . Terminal Hacks 17 | . . . 3 . 1 . 10 . 3 Record 1 | . . . . . 1 . . . . Part Schematic 1 | . . . . . . . 1 . . Open Door 1 | . . . . . . . . . 1 Branch Access Points 1 | . . . 1 . . . . . . Emergency Access Points 1 | . . . . . . . . . 1 Terminal Index 2 | . . . 1 . . . 1 . . Unreport Threat 1 | . . . . . . . 1 . . Hauler Manifests 1 | . . . . . . . 1 . . Registered Components 1 | . . . . . . . 1 . . Zone Layout 6 | . . . 1 . . . 5 . . Security Stations 1 | . . . . . . . . . 1 Fabricator Hacks . | . . . . . . . . . . Repair Station Hacks . | . . . . . . . . . . Recycling Unit Hacks . | . . . . . . . . . . Scanalyzer . | . . . . . . . . . . Garrison Access Hacks 1 | . . . . . . . . 1 . Unlock Access 1 | . . . . . . . . 1 . Unauthorized Hacks 7 | . . . 2 . . . 5 . . Terminals 7 | . . . 2 . . . 5 . . Botnet 4 | . . . 1 . . . 3 . . Disrupt 1 | . . . . . . . 1 . . Operators 2 | . . . 1 . . . 1 . . Fabricators . | . . . . . . . . . . Repair Stations . | . . . . . . . . . . Recycling Units . | . . . . . . . . . . Scanalyzers . | . . . . . . . . . . Garrison Access . | . . . . . . . . . . Data Cores Recovered . | . . . . . . . . . . Used . | . . . . . . . . . . Hacking Detections 13 | . . . 2 . . . 7 . 4 Full Trace Events 3 | . . . . . . . 1 . 2 Feedback Events . | . . . . . . . . . . Feedback Blocked . | . . . . . . . . . . Robot Schematics Acquired . | . . . . . . . . . . Robots Built . | . . . . . . . . . . Authchips . | . . . . . . . . . . Time . | . . . . . . . . . . Total Robot Build Rating . | . . . . . . . . . . Part Schematics Acquired 1 | . . . . . . . 1 . . Parts Built . | . . . . . . . . . . Authchips . | . . . . . . . . . . Time . | . . . . . . . . . . Total Part Build Rating . | . . . . . . . . . . Parts Repaired . | . . . . . . . . . . Time . | . . . . . . . . . . Parts Recycled . | . . . . . . . . . . Recycled Matter . | . . . . . . . . . . Retrieved Matter . | . . . . . . . . . . Retrieved Components . | . . . . . . . . . . Parts Scanalyzed . | . . . . . . . . . . Part Schematics Acquired . | . . . . . . . . . . Parts Damaged . | . . . . . . . . . . Bothacking | -11 -10 -10 -9 -9 -9 -8 -8 -7 -7 ------------ Run | Scr Mat Min Mat Min Exi Min Mat Fac Gar Used RIF Installer . | . . . . . . . . . . Robots Hacked . | . . . . . . . . . . Non-combat . | . . . . . . . . . . Combat . | . . . . . . . . . . Robot Hacks Applied . | . . . . . . . . . . Relay Couplers Released 5 | . . . . . . . . . 5 Machine Destruction 5 | . . . . . . . . . 5 Fabnet Peak Effective % . | . . . . . . . . . . Robots Rewired . | . . . . . . . . . . Allies Hacked . | . . . . . . . . . . Hacks Repelled . | . . . . . . . . . . Allies | -11 -10 -10 -9 -9 -9 -8 -8 -7 -7 -------- Run | Scr Mat Min Mat Min Exi Min Mat Fac Gar Total Allies 4 | . . . . . . . . . 4 Largest Group 2 | . . . . . . . . . 2 Highest-Rated Group 157 | . . . . . . . . . 157 Highest-Rated Ally 95 | . . . . . . . . . 95 Total Orders . | . . . . . . . . . . Ally Attacks 61 | . . . . . . . . . 61 Total Damage 1330 | . . . . . . . . . 1330 Kills 15 | . . . . . . . . . 15 Allies Corrupted . | . . . . . . . . . . Allies Melted . | . . . . . . . . . . Intel | -11 -10 -10 -9 -9 -9 -8 -8 -7 -7 ------- Run | Scr Mat Min Mat Min Exi Min Mat Fac Gar Robot Analysis Total . | . . . . . . . . . . Derelict Logs Recovered 2 | . . 2 . . . . . . . Drone Launches . | . . . . . . . . . . Drone Recoveries . | . . . . . . . . . . Exploration | -11 -10 -10 -9 -9 -9 -8 -8 -7 -7 ------------- Run | Scr Mat Min Mat Min Exi Min Mat Fac Gar Turns Passed 4432 | 3 93 656 346 382 423 133 1615 123 658 Spaces Moved 2859 | 1 59 369 147 188 248 79 1011 229 528 Core 655 | . . . . . . . 387 229 39 Treads 1538 | 1 59 369 147 188 248 79 342 . 105 Legs 144 | . . . . . . . . . 144 Wheels 279 | . . . . . . . 279 . . Hover . | . . . . . . . . . . Flight 243 | . . . . . . . 3 . 240 Fastest Speed 50 | 160 160 160 160 170 170 170 50 50 50 Average Speed 119 | 160 160 160 162 170 170 170 106 50 82 Slowest Speed 170 | 160 160 160 170 170 170 170 170 50 160 Overloaded Moves . | . . . . . . . . . . Propulsion Burnouts . | . . . . . . . . . . Robots Hopped . | . . . . . . . . . . Cave-ins Triggered . | . . . . . . . . . . Exploration Rate (%) 43 | 2 19 76 19 57 63 44 81 8 61 Regions Visited 9 Branch Regions 4 Pre-discovered Areas 2 | . . 1 . . 1 . . . . Known Exits Taken 2 | . . . 1 . . . . 1 . Unknown Exits Taken 7 | 1 1 1 . 1 1 1 1 . . Scrap Searched 3 | . . 1 . 2 . . . . . Spaces Dug 8 | . . . . . . . 8 . . Terrain Destroyed 14 | . . . . . . . 12 . 2 Melee . | . . . . . . . . . . Projectile 2 | . . . . . . . . . 2 AOE 12 | . . . . . . . 12 . . Terrain Rammed . | . . . . . . . . . . Walls Destroyed . | . . . . . . . . . . Machines Disabled . | . . . . . . . . . . Actions | -11 -10 -10 -9 -9 -9 -8 -8 -7 -7 --------- Run | Scr Mat Min Mat Min Exi Min Mat Fac Gar Total 3464 | 4 58 403 200 214 252 78 1358 236 661 Wait 244 | . . 8 11 . . . 175 7 43 Move 2850 | . 58 368 146 187 247 78 1010 228 528 Hop . | . . . . . . . . . . Pick Up 26 | . . 1 6 . 1 . 9 . 9 Fast Attach 27 | . . . 6 1 . . 13 1 6 Attach 20 | 2 . 1 1 . . . 11 . 5 Detach 3 | . . . . . . . 3 . . Swap 9 | . . 1 . . . . 2 . 6 Drop 30 | 2 . . 3 1 4 . 17 . 3 Fire 201 | . . 22 26 20 . . 102 . 31 Melee 23 | . . . . . . . . . 23 Ram 4 | . . . . . . . 4 . . Kick . | . . . . . . . . . . Crush 20 | . . 2 1 5 . . 12 . . Escape Stasis 7 | . . . . . . . . . 7 Rewire . | . . . . . . . . . . Trap . | . . . . . . . . . . Miscellaneous . | . . . . . . . . . . Route ------- -11/Scrapyard -10/Materials -10/Mines -9/Materials (discovered 2 exits: *Min / Sto) -9/Mines (discovered 3 exits: *Mat x2 / *Exi) -9/Exiles (discovered 2 exits: [*Min x2]) -8/Mines -8/Materials (discovered 3 exits: *Fac x3) -7/Factory (discovered 2 exits: [*Fac] / Gar) -7/Garrison (discovered 2 exits: [*Fac x2]) History --------- Turn | Location | Event 4 | -11/Scrapyard | Discovered new exit (range 0) 4 | -11/Scrapyard | Entered Materials 73 | -10/Materials | Discovered new exit (range 16) 97 | -10/Materials | Entered Mines 135 | -10/Mines | Met a Derelict bent on vengeance 138 | -10/Mines | Learned Materials trap positions 309 | -10/Mines | Build established: Mutant 731 | -10/Mines | Discovered new exit (range 15) 740 | -10/Mines | Learned location of Storage (-9) 753 | -10/Mines | Entered Materials 753 | -9/Materials | Evolved 2 slots: Utility x2 754 | -9/Materials | Identified exit to Storage 755 | -9/Materials | Loaded intel: 10 trap records 882 | -9/Materials | Identified exit to Mines 1099 | -9/Materials | Entered Mines 1218 | -9/Mines | Discovered new exit (range 8) 1454 | -9/Mines | Discovered new exit (range 5) 1474 | -9/Mines | Deemed a non-threat by the Exiles lab entrance 1474 | -9/Mines | Discovered new exit (range 5) 1481 | -9/Mines | Entered Exiles 1509 | -9/Exiles | Discovered new exit (range 15) 1524 | -9/Exiles | Met 8R-AWN 1551 | -9/Exiles | Met EX-HEX 1628 | -9/Exiles | Met EX-DEC 1634 | -9/Exiles | Learned location of Zion (-6) 1662 | -9/Exiles | Met EX-BIN 1685 | -9/Exiles | Aligned with FarCom system 1687 | -9/Exiles | Given EX-Vault access code 1726 | -9/Exiles | Opened EX-Vault 1735 | -9/Exiles | Found Prototype Flight Unit 1768 | -9/Exiles | Warned to stay clear of 0b10 Research branches 1797 | -9/Exiles | Exiles lab attacked by MAIN.C 1884 | -9/Exiles | Discovered new exit (range 12) 1904 | -9/Exiles | Left Exiles lab with Flying Fortress v7 1904 | -9/Exiles | Entered Mines 2010 | -8/Mines | Discovered new exit (range 15) 2037 | -8/Mines | Entered Materials 2037 | -8/Materials | Evolved 2 slots: Propulsion x2 2044 | -8/Materials | Identified Flying Fortress v7 2549 | -8/Materials | Build established: Scavenger-Mutant 2588 | -8/Materials | Discovered new exit (range 7) 2647 | -8/Materials | Lost 4 parts (1p1n2u) 2945 | -8/Materials | Lost 3 parts (1n1u1w) 3436 | -8/Materials | Discovered new exit (range 16) 3642 | -8/Materials | Discovered new exit (range 7) 3652 | -8/Materials | Entered Factory 3652 | -7/Factory | Evolved 2 slots: Utility x2 3675 | -7/Factory | Discovered new exit (range 13) 3707 | -7/Factory | Build established: Mutant 3718 | -7/Factory | Identified exit to Garrison 3775 | -7/Factory | Entered Garrison 3780 | -7/Garrison | Triggered checkpoint 3782 | -7/Garrison | Triggered checkpoint 3788 | -7/Garrison | Triggered checkpoint 3820 | -7/Garrison | Lost 3 parts (2n1w) 3868 | -7/Garrison | Found embedded Infiltrators 3875 | -7/Garrison | Garrison Relay disabled 3898 | -7/Garrison | Discovered new exit (range 9) 3952 | -7/Garrison | Triggered checkpoint 4033 | -7/Garrison | Core integrity fell below 50% 4037 | -7/Garrison | Rescued a captive Derelict 4042 | -7/Garrison | Rescued a captive Derelict 4100 | -7/Garrison | Discovered new exit (range 11) 4184 | -7/Garrison | Triggered checkpoint 4217 | -7/Garrison | Learned Factory security intel 4252 | -7/Garrison | Triggered checkpoint 4278 | -7/Garrison | Triggered checkpoint 4338 | -7/Garrison | Build established: Scavenger-Mutant 4433 | -7/Garrison | Self-destructed Last Messages --------------- 04357_ Slug penetrates L-41 Fighter. 04357_ Destroyed Axe. 04359_ HV Slug penetrates L-41 Fighter. 04359_ L-41 Fighter destroyed. 04362_ Autogun destroyed. 04362_ Slug penetrates G-47 Trooper. 04363_ G-47 Trooper suffers critical hit (Destroy). 04364_ Slug penetrates G-47 Trooper. 04366_ G-47 Trooper destroyed. 04367_ G-47 Trooper suffers critical hit (Destroy). 04368_ Slug penetrates G-47 Trooper. 04368_ G-47 Trooper suffers critical hit (Destroy). 04368_ G-47 Trooper destroyed. 04377_ Acquired 1 matter. 04380_ Acquired 41 matter. 04383_ Acquired 45 matter. 04385_ Acquired 3 matter. 04433_ Connecting with Garrison Terminal... 04433_ ALERT: Suspicious activity at Terminal G003. Transmitting hostile system tracking data. Map ----- +----------------------------------------------------+ | ?????????????????????????????????? | | ?????????????????????????????????? | | ?????????????????????????????????? | | ?????????????????????????????????? | | ?????????????????????????????????? | | ?????????????????????????????????? | | ?????????????????????????????????? | | ?????????????????????????????????? | | ?????????????????????????????????? | | ?????????????????????????????????? | | ?????????????????????????????????? | | ?????????????????????????????????? | | ?????????????????????????????????? | | ?????????????????s?ss????????????? | | ?????????????????????????????????? | | ??????????#++#???????????????????? | | ??????????# #???????????????????? | | ??????????# #???????????????????? | | ??????????# #???????????????????? | | ??????????# #??????????????????? | | ??????????# #??????????????????? | | ??????????# #??????????????????? | | ??????????# #??????????????????# | | ??????????# #??????????????????# | | ??????#####h #??????????????????# | | ??????#" @ #??????????????????# | | ??????#"T"# #??????????????????# | | ??????##### #??????????????????# | | ??????????# #??????????????????# | | ??????????# #??????????????????# | | ??????????# #??????????????????# | | ??????????# #??????????????????# | | ????##????# %#??????????????????# | | ????#""" # *#################### | | ????#" ^ ! * %* " | | ????#"""" # %=== + | | ?????############################# | | ?????????????????????????????????? | | ?????????????????????????????????? | | ?????????????????????????????????? | | ?????????????????????????????????? | | ?????????????????????????????????? | | ?????????????????????????????????? | | ??????????????????????????######## | | ??????????????????????????? | | ????????????????????????????????# | | ????????????????????????????????# | | ????????????????????????????????# | | ????????????????????????????????# | | ????????????????????????????????# | +----------------------------------------------------+ Best States ------------- Heat Dissipation 41 Energy Generation 14 Energy Capacity 265 Matter Stores 300 Matter Capacity 300 Sight Range 16 Terrain Scan Density 85 Armor Coverage 450 Resistance: KI 20 Evasion (%) 60 Target Analysis 5 Recoil Reduction 4 Authchip Count 4 Item Schematics ----------------- Datajack | -8/Materials | Hacked Robot Schematics ------------------ None Fabricated ------------ Nothing Alien Tech Used ----------------- None Achievements -------------- None Challenges ------------ None Game ------ Seed SpikedChipBuckler Manual? 0 Play Time 00:32:46 Cumulative 262.3 hours Start 2022.07.31 @ 07:16:16 End 2022.07.31 @ 07:46:56 Sessions 1 Manual Loads 0 Difficulty Rogue Special Mode None Game No. 314 Rogue 314 Adventurer 0 Explorer 0 Win Type - Total 11 Types 8/0/2/1/0/0/0/0/0 Lore% 70 Gallery% 87 Achievement% 74 Wizard Run 0 Options --------- ASCII 0 Keyboard 0 Movement Numpad Keybinds 0 Fullscreen 1 Font 18/Terminus Map View 76x50 Tactical HUD 1 Map Filters NONE Filters NONE Steam 1 RUN: 82317ea4-3be9-4833-a803-35bb228187e2